bitfinex-derivatives/quotes_ETHF0:USTF0_20251117
["timestamp","ask_amount","ask_price","bid_price","bid_amount"]
[1763393025762,3.2078,3129.0,3128.1,3.2078]
[1763393026258,3.2078,3129.4,3128.1,3.2078]
[1763393026462,3.2078,3129.4,3128.3,0.5183]
[1763393026653,3.2078,3129.4,3128.3,0.51831]
[1763393026955,3.2078,3129.4,3128.2,0.51833]
[1763393027152,3.2078,3129.4,3128.1,3.2078]
[1763393027353,3.2078,3129.4,3128.5,3.2078]
[1763393029160,3.2078,3129.0,3128.5,3.2078]
[1763393029461,3.2078,3128.6,3127.7,0.00479609]
[1763393029664,3.2078,3128.6,3127.9,0.51838]
[1763393029957,3.2078,3128.6,3128.0,3.2078]
[1763393030156,4.0811,3129.0,3128.0,3.72616]
[1763393030458,0.69147665,3128.9,3128.0,3.2078]
[1763393030756,0.69147665,3128.9,3128.2,0.51831]
[1763393030961,3.2078,3129.0,3128.5,0.51826]
[1763393031255,3.2078,3129.0,3128.4,3.2078]
[1763393031658,3.2078,3129.4,3128.4,3.72609]
[1763393031857,0.6911971,3129.3,3128.5,0.51828]
[1763393032057,0.6911971,3129.3,3128.4,3.72608]
[1763393032253,0.6911971,3129.3,3128.4,3.2078]
[1763393035563,3.2078,3129.0,3128.4,3.2078]
[1763393036061,3.2078,3129.4,3128.5,0.51827]
[1763393036262,3.2078,3129.4,3128.4,3.2078]
[1763393036263,0.6897079,3129.3,3128.4,3.2078]
[1763393036570,3.2078,3129.4,3128.9,0.5182]
[1763393036771,0.00235463,3129.5,3128.8,3.2078]
[1763393037358,0.00235463,3129.5,3129.0,0.51819]
[1763393037663,0.00235463,3129.5,3129.2,3.2078]
[1763393037858,0.00235463,3129.5,3129.2,3.72596]
[1763393038058,0.00235463,3129.5,3129.4,0.51813]
[1763393038265,0.00235463,3129.5,3129.2,3.72595]
[1763393038465,0.00235463,3129.5,3129.2,3.2078]
[1763393040160,0.00235463,3129.5,3129.4,0.51813]
[1763393040361,3.2078,3130.0,3128.8,3.2078]
[1763393040566,3.2078,3129.2,3128.8,3.2078]
[1763393040759,3.2078,3129.2,3128.7,0.00479609]
[1763393041266,0.68855522,3129.1,3128.7,0.00479609]
[1763393041564,3.21030638,3129.2,3128.7,0.00479609]
[1763393042261,0.00250638,3129.2,3128.7,0.00479609]
[1763393042463,0.6893651,3130.2,3129.7,0.51807]
[1763393042769,3.2078,3130.3,3129.7,0.51807]
[1763393042770,3.2078,3130.3,3129.7,0.51806]
[1763393043268,3.2078,3130.8,3130.0,3.2078]
[1763393043488,0.68826828,3130.7,3130.0,3.21193406]
[1763393043767,3.2078,3130.4,3130.0,0.00413406]
[1763393044561,0.9214,3130.2,3129.3,3.2078]
[1763393044760,3.2078,3130.0,3129.3,3.2078]
[1763393044961,0.68743665,3129.9,3129.3,3.2078]
[1763393045266,0.68743665,3129.9,3128.9,3.2078]
[1763393045457,0.9214,3130.2,3128.9,3.2078]
[1763393045458,3.2078,3130.4,3129.7,3.72587]
[1763393045659,3.2078,3130.4,3129.7,3.2078]
[1763393045863,3.2078,3130.4,3129.7,3.72588]
[1763393046058,3.2078,3130.4,3129.7,3.2078]
[1763393046263,0.9214,3130.2,3129.7,3.2078]
[1763393046464,0.68935168,3130.1,3129.7,3.2078]
[1763393046664,0.9214,3130.2,3129.7,3.2078]
[1763393046965,0.68951762,3130.1,3129.7,3.2078]
[1763393047168,3.2078,3130.3,3129.7,3.72587]
[1763393047369,0.9214,3131.1,3129.7,3.2078]
[1763393047571,2.529553,3131.7,3130.5,3.2078]
[1763393047572,0.69049908,3131.0,3130.5,3.2078]
[1763393047769,0.69049908,3130.9,3130.5,3.2078]
[1763393047965,3.21072483,3130.8,3130.3,0.00479609]
[1763393048370,0.00292483,3130.8,3130.5,3.2078]
[1763393048573,0.00292483,3130.8,3130.3,0.00479609]
[1763393048769,0.69422996,3130.8,3130.3,0.00479609]
[1763393048967,0.00292483,3130.8,3130.3,0.00479609]
[1763393049165,3.2078,3130.5,3130.3,0.00479609]
[1763393049664,3.2078,3130.5,3128.9,0.00238756]
[1763393049665,6.69114335,3130.4,3129.2,3.2078]
[1763393049868,0.00292483,3130.8,3129.2,3.2078]
[1763393049869,3.2078,3130.1,3129.2,3.2078]
[1763393050066,0.69114335,3130.0,3129.2,3.2078]
[1763393050673,0.00479609,3129.9,3129.3,0.00479609]
[1763393050863,0.00479609,3129.9,3129.7,0.51808]
[1763393051069,0.00479609,3129.9,3129.6,3.2078]
[1763393053067,0.00479609,3129.9,3129.6,3.72589]
[1763393053268,0.00479609,3129.9,3129.7,0.51808]
[1763393053676,0.00479609,3129.9,3129.6,3.2078]
[1763393053869,0.00479609,3129.9,3129.7,3.2078]
[1763393054269,3.2078,3130.6,3129.7,3.2078]
[1763393054465,3.2078,3130.6,3130.1,3.2078]
[1763393055174,0.00292483,3130.8,3130.5,3.2078]
[1763393055486,3.2078,3132.3,3131.1,0.51784]
[1763393055671,0.69153948,3132.2,3131.7,3.2078]
[1763393056174,3.2078,3132.8,3132.1,3.2078]
[1763393056377,3.2078,3132.8,3132.1,3.21069931]
[1763393056378,0.6918943,3132.7,3132.1,3.21069931]
[1763393056578,3.21130771,3132.8,3132.1,3.21069931]
[1763393057975,3.21130771,3132.8,3132.5,3.2078]
[1763393057976,0.00350771,3132.8,3132.5,3.2078]
[1763393058382,0.0346,3133.7,3132.5,3.2078]
[1763393058383,0.0346,3133.7,3133.0,0.51753]
[1763393058575,0.0346,3133.7,3133.0,3.21258827]
[1763393058781,3.2078,3133.6,3133.0,3.21258827]
[1763393058974,3.2078,3133.6,3132.1,0.00289931]
[1763393058975,3.2078,3133.1,3132.1,0.00289931]
[1763393059288,3.2078,3132.7,3132.1,0.00289931]
[1763393059484,0.00279126,3132.7,3132.1,0.00289931]
[1763393059682,3.2078,3132.4,3132.1,0.00289931]
[1763393059892,3.2078,3132.4,3131.5,3.2078]
[1763393060074,4.0254,3132.0,3131.1,3.2078]
[1763393060275,3.2078,3131.4,3130.1,3.2078]
[1763393060575,0.8176,3132.0,3130.1,3.2078]
[1763393060576,3.2078,3130.7,3130.1,3.2078]
[1763393060773,3.2078,3130.7,3130.1,0.00316623]
[1763393061187,3.21258827,3130.7,3130.1,0.0079545]
[1763393061376,3.2078,3131.4,3130.6,0.51792]
[1763393061681,3.2078,3131.4,3130.6,0.51793]
[1763393061984,3.2078,3131.4,3130.5,3.2078]
[1763393062187,0.8176,3132.0,3130.1,0.0079545]
[1763393062188,3.2078,3130.8,3130.1,0.0079545]
[1763393062385,3.21256226,3130.8,3130.1,0.0079545]
[1763393062881,0.00476226,3130.8,3130.1,0.0079545]
[1763393063085,3.2078,3131.7,3130.4,3.2078]
[1763393063478,3.2078,3131.3,3130.4,3.2078]
[1763393063983,0.8176,3132.0,3130.2,0.7963]
[1763393063984,1.81694576,3131.9,3131.2,3.2078]
[1763393064291,3.2078,3132.1,3131.2,3.2078]
[1763393064486,3.2078,3132.1,3131.2,3.72563]
[1763393064786,0.8495,3132.0,3131.2,3.2078]
[1763393065197,3.2078,3131.7,3130.7,3.2078]
[1763393065389,3.2078,3132.2,3130.9,0.51788]
[1763393065689,0.00279126,3132.7,3130.7,3.2078]
[1763393065690,3.2078,3131.4,3130.7,3.2078]
[1763393066281,3.2078,3131.4,3130.3,3.2078]
[1763393066488,3.2078,3131.4,3130.7,3.2078]
[1763393066688,3.2078,3131.4,3130.7,3.7257]
[1763393066883,3.2078,3131.8,3130.9,0.51787]
[1763393067087,3.2078,3131.8,3130.8,0.5179]
[1763393067287,3.2078,3131.8,3131.1,3.2078]
[1763393068895,3.2078,3131.8,3131.2,0.51783]
[1763393069094,3.2078,3131.8,3131.1,3.2078]
[1763393070385,3.2078,3132.2,3131.5,3.2078]
[1763393070585,3.2078,3132.2,3131.6,0.51777]
[1763393070893,3.2078,3132.6,3131.9,3.2078]
[1763393071689,3.2078,3132.2,3131.5,3.21258827]
[1763393073897,3.2078,3131.7,3131.5,0.00478827]
[1763393074398,0.8495,3132.0,3131.5,0.00478827]
[1763393074696,3.2078,3132.1,3131.5,0.00478827]
[1763393074892,0.8495,3132.0,3131.5,0.00478827]
[1763393075396,3.2078,3132.1,3131.5,0.00478827]
[1763393075696,3.2078,3131.7,3131.5,0.00478827]
[1763393075892,3.2078,3131.7,3130.6,3.2078]
[1763393076194,3.2078,3130.8,3129.8,3.2078]
[1763393076693,0.68651648,3130.7,3129.8,3.2078]
[1763393077092,0.8495,3130.4,3130.1,0.0079545]
[1763393077403,3.2078,3130.2,3130.1,0.0079545]
[1763393078789,3.2078,3130.2,3129.4,3.2078]
[1763393078998,3.2078,3129.8,3128.5,3.2078]
[1763393079196,3.2078,3129.3,3128.5,3.2078]
[1763393079695,3.2078,3128.7,3128.0,3.2078]
[1763393079893,0.00478827,3128.7,3128.0,3.21501473]
[1763393080088,0.00478827,3128.7,3128.0,3.73336473]
[1763393080288,3.21258827,3128.7,3128.0,3.21501473]
[1763393080499,0.00478827,3128.7,3128.0,3.21501473]
[1763393080697,3.21258827,3128.7,3128.0,3.21501473]
[1763393081098,0.00478827,3128.7,3128.0,3.21501473]
[1763393081298,0.00478827,3128.7,3128.0,3.73337473]
[1763393081496,3.21258827,3128.7,3128.0,0.00721473]
[1763393081695,3.21258827,3128.7,3127.3,40.8]
[1763393081696,3.2078,3128.3,3127.2,3.2078]
[1763393081999,3.2078,3128.3,3125.1,4.815183]
[1763393082000,3.2078,3127.3,3126.2,3.2078]
[1763393082184,0.8495,3127.5,3126.2,3.2078]
[1763393082185,3.2078,3126.9,3126.2,3.2078]
[1763393082586,3.2078,3126.3,3125.8,3.2078]
[1763393082790,0.00241513,3126.3,3125.9,0.5187]
[1763393083195,0.00241513,3126.3,3125.8,3.21149863]
[1763393084101,0.00241513,3126.3,3126.0,0.51868]
[1763393084493,0.00241513,3126.3,3125.8,3.21149863]
[1763393085001,0.00241513,3126.3,3125.9,0.5187]
[1763393085495,0.00241513,3126.3,3125.8,3.21149863]
[1763393085803,0.00241513,3126.3,3125.8,0.00369863]
[1763393087688,0.00241513,3126.3,3125.9,3.2078]
[1763393088295,0.00241513,3126.3,3125.9,3.7265]
[1763393088900,0.00241513,3126.3,3125.9,3.2078]
[1763393089799,0.00241513,3126.3,3125.8,0.00369863]
[1763393089800,3.2078,3126.1,3125.8,0.00369863]
[1763393090892,0.00241513,3126.3,3125.8,0.52241863]
[1763393091097,0.00241513,3126.3,3125.8,0.00369863]
[1763393091301,0.00241513,3126.3,3126.0,0.51868]
[1763393091504,0.00241513,3126.3,3126.1,0.51867]
[1763393091706,0.00241513,3126.3,3125.8,0.00369863]
[1763393091707,0.00241513,3126.3,3125.9,0.5187]
[1763393091901,0.00241513,3126.3,3125.8,0.00369863]
[1763393093106,3.2078,3126.1,3125.8,0.00369863]
[1763393093293,3.2078,3126.1,3125.7,0.00479639]
[1763393093493,3.2078,3126.1,3124.4,3.2078]
[1763393093700,3.2078,3125.6,3124.8,3.2078]
[1763393094300,1.81694576,3125.5,3124.3,3.2078]
[1763393094496,1.81694576,3125.5,3124.8,0.00231344]
[1763393094497,3.2078,3125.1,3124.8,0.00231344]
[1763393094900,3.2078,3125.6,3124.9,3.2078]
[1763393095098,3.2078,3126.0,3124.9,3.2078]
[1763393095302,3.2078,3126.0,3124.9,3.72666]
[1763393095504,3.2078,3126.0,3125.1,0.51884]
[1763393095706,3.2078,3126.0,3124.9,3.2078]
[1763393095903,3.2078,3126.0,3125.4,0.51878]
[1763393096104,3.2078,3126.0,3125.4,3.2078]
[1763393096501,0.00241513,3126.3,3125.4,3.2078]
[1763393098613,0.7131,3125.6,3124.8,0.00231344]
[1763393099208,0.7131,3125.6,3124.9,0.51887]
[1763393099407,3.2078,3125.9,3125.0,3.72666]
[1763393099604,3.2078,3125.9,3125.0,3.2078]
[1763393099803,3.2078,3125.9,3125.6,0.51876]
[1763393100011,0.00241513,3126.3,3125.6,0.51876]
[1763393100207,0.00241513,3126.3,3125.8,3.2078]
[1763393100407,3.21259639,3126.4,3126.3,0.51864]
[1763393100707,3.2078,3127.9,3126.4,0.6401]
[1763393100905,0.7131,3128.8,3127.5,3.2078]
[1763393101111,3.2078,3128.3,3127.6,3.2078]
[1763393101305,3.2078,3127.8,3126.8,3.2078]
[1763393101504,0.00479639,3127.6,3127.0,0.00479639]
[1763393101710,3.2078,3127.3,3127.0,0.00479639]
[1763393102609,3.2078,3127.3,3126.3,3.2078]
[1763393102812,0.7131,3126.6,3125.9,3.2078]
[1763393103516,3.2078,3126.0,3125.9,0.00479639]
[1763393103811,3.2078,3126.0,3125.9,0.00771448]
[1763393104208,3.2078,3126.4,3125.9,0.00771448]
[1763393104521,3.2078,3126.7,3125.9,3.21551448]
[1763393104805,0.7131,3126.6,3125.9,3.21551448]
[1763393105011,3.2078,3126.7,3125.9,3.21551448]
[1763393105209,3.2078,3126.7,3126.1,0.51867]
[1763393105399,3.2078,3126.7,3125.9,3.21551448]
[1763393105604,0.00479639,3127.6,3125.9,3.21551448]
[1763393105605,3.2078,3127.5,3126.6,0.51859]
[1763393105805,3.2078,3127.5,3126.7,3.2078]
[1763393106005,3.2078,3127.5,3126.9,0.51854]
[1763393106306,3.2078,3127.5,3127.1,3.2078]
[1763393106812,3.2078,3127.5,3125.9,3.21551448]
[1763393106813,3.9209,3127.5,3125.9,3.21551448]
[1763393107117,3.9209,3126.6,3125.9,3.21551448]
[1763393107308,3.9209,3126.6,3125.9,0.00771448]
[1763393107509,3.2078,3126.6,3125.9,0.00771448]
[1763393107712,3.9209,3126.6,3125.9,0.00771448]
[1763393108403,3.2078,3126.6,3125.9,0.00771448]
[1763393108810,3.9209,3126.6,3125.9,0.00771448]
[1763393109003,0.7131,3126.6,3125.9,0.52641448]
[1763393109311,3.2078,3127.0,3126.0,3.72648]
[1763393109519,0.69047257,3126.9,3126.1,0.51868]
[1763393109811,0.69047257,3126.9,3126.1,0.51866]
[1763393110014,0.69047257,3126.9,3125.9,0.00771448]
[1763393110015,3.2078,3126.6,3125.9,0.00771448]
[1763393110208,0.69185528,3126.5,3125.9,0.00771448]
[1763393110909,3.2078,3126.1,3125.9,0.00771448]
[1763393111308,0.69148252,3126.0,3125.9,0.00771448]
[1763393112816,0.69148252,3126.4,3125.9,0.00771448]
[1763393113006,0.69148252,3126.3,3125.9,0.00771448]
[1763393113513,0.69148252,3126.3,3125.6,3.2078]
[1763393113919,3.2078,3125.9,3125.2,3.2078]
[1763393114221,0.69148252,3125.8,3125.2,3.2078]
[1763393114409,0.69627891,3125.8,3125.3,0.51881]
[1763393114713,0.69627891,3125.8,3125.2,3.21537284]
[1763393115021,0.69627891,3125.8,3125.2,3.73420284]
[1763393115207,0.69627891,3125.8,3125.2,0.00757284]
[1763393115208,3.2078,3125.5,3125.2,0.00757284]
[1763393115404,0.69148252,3125.4,3125.2,0.00757284]
[1763393115612,0.69148252,3125.3,3124.3,3.2078]
[1763393115808,3.2078,3125.0,3124.3,3.2078]
[1763393116009,0.7131,3124.8,3124.3,3.2078]
[1763393116220,0.69148252,3124.7,3124.3,3.2078]
[1763393116515,0.69148252,3124.7,3124.3,3.21091555]
[1763393116707,1.11173958,3125.4,3125.3,0.51881]
[1763393116910,3.2078,3126.2,3125.4,0.51879]
[1763393117220,0.69010443,3126.1,3125.4,0.51879]
[1763393117718,0.69010443,3126.1,3125.3,3.2078]
[1763393117903,0.69010443,3126.1,3125.4,0.51879]
[1763393118104,3.2078,3126.2,3125.3,3.2078]
[1763393118320,3.2078,3126.2,3125.8,3.2078]
[1763393118531,3.2078,3126.2,3125.5,3.2078]
[1763393118718,3.9384,3125.6,3124.7,3.2078]
[1763393118917,0.68976874,3125.5,3125.1,3.2078]
[1763393119214,0.00246829,3125.5,3125.1,3.2078]
[1763393119417,0.00246829,3125.5,3124.7,3.2078]
[1763393119418,0.7306,3124.8,3124.7,3.2078]
[1763393119614,3.2078,3125.2,3124.7,3.2078]
[1763393119920,1.11420787,3125.5,3124.3,1.555e-05]
[1763393119921,5.05013958,3124.8,3124.3,1.555e-05]
[1763393120118,3.2078,3124.4,3123.7,0.03201383]
[1763393120417,3.9384,3124.0,3123.7,0.03201383]
[1763393120624,0.68990094,3123.9,3123.7,0.03201383]
[1763393121011,0.68990094,3123.9,3123.7,0.03593701]
[1763393121214,3.9384,3124.0,3123.7,0.03593701]
[1763393121419,3.2078,3124.4,3123.7,0.03593701]
[1763393121625,0.68815834,3124.3,3123.7,0.03593701]
[1763393121822,3.2078,3124.4,3123.7,0.55500701]
[1763393122019,3.9384,3124.8,3124.0,3.2078]
[1763393122219,3.2078,3124.8,3124.0,3.2078]
[1763393122416,3.2078,3124.8,3124.2,0.51899]
[1763393122624,3.891,3124.8,3124.0,3.2078]
[1763393124223,0.6832,3124.8,3124.0,3.2078]
[1763393124522,3.2078,3125.2,3124.0,3.2078]
[1763393124918,0.00246829,3125.5,3125.1,0.51883]
[1763393125120,0.00246829,3125.5,3124.9,3.2078]
[1763393125326,0.00246829,3125.5,3124.9,3.72666]
[1763393125522,0.00246829,3125.5,3124.9,3.2078]
[1763393125722,0.00246829,3125.5,3125.0,0.51885]
[1763393126027,0.00246829,3125.5,3124.9,3.2078]
[1763393126228,0.00246829,3125.5,3124.9,3.72667]
[1763393126415,0.00246829,3125.5,3124.9,3.2078]
[1763393128126,1.693953,3126.5,3124.0,40.8]
[1763393128127,3.2078,3126.0,3125.3,3.2078]
[1763393128329,2.25793546,3127.4,3126.1,0.51866]
[1763393128330,3.2078,3126.9,3126.1,0.51866]
[1763393128521,3.2078,3126.9,3125.9,3.2078]
[1763393128823,0.68865839,3126.8,3125.9,3.2078]
[1763393129022,3.2078,3126.4,3125.9,3.2078]
[1763393129226,3.2078,3126.0,3125.9,0.00250586]
[1763393129424,3.89653409,3126.0,3124.8,0.51889]
[1763393129727,3.2078,3125.5,3124.7,3.2078]
[1763393130318,3.2078,3125.5,3124.8,0.51889]
[1763393130523,3.2078,3125.5,3124.8,0.00860943]
[1763393130721,3.2078,3125.5,3124.8,0.52749943]
[1763393130918,3.2078,3125.5,3124.8,0.52748943]
[1763393131119,3.2078,3125.9,3124.8,0.52748943]
[1763393131319,0.00387116,3126.4,3125.5,3.2078]
[1763393131724,0.00387116,3126.4,3125.9,3.2078]
[1763393132224,0.00387116,3126.4,3125.4,3.2078]
[1763393132825,0.00387116,3126.4,3125.8,3.72651]
[1763393133134,0.00387116,3126.4,3125.8,3.2078]
[1763393133627,3.2078,3126.0,3125.0,3.2078]
[1763393133830,3.2078,3125.2,3124.8,0.00860943]
[1763393134824,1.81694576,3125.1,3124.8,0.00860943]
[1763393135732,3.2078,3125.2,3124.8,0.00860943]
[1763393136232,3.2078,3125.2,3124.3,3.2078]
[1763393136233,0.6832,3124.8,3124.3,3.2078]
[1763393136531,3.2078,3124.6,3123.8,3.2078]
[1763393137229,0.00479639,3124.5,3123.8,3.21162981]
[1763393137534,3.891,3123.9,3123.8,0.00382981]
[1763393137737,4.58537835,3123.9,3122.7,3.2078]
[1763393138027,3.2078,3123.3,3122.3,0.5193]
[1763393138228,3.2078,3122.8,3121.7,3.2078]
[1763393138627,3.2078,3122.4,3121.7,3.21170209]
[1763393139128,3.2078,3121.9,3121.7,0.00390209]
[1763393139336,3.2078,3121.9,3120.8,3.2078]
[1763393139829,1.81694576,3121.8,3120.8,3.2078]
[1763393140035,3.2078,3121.9,3120.8,3.2078]
[1763393140226,3.2078,3122.3,3121.4,3.2078]
[1763393140427,3.2078,3122.3,3121.4,3.72725]
[1763393140623,1.81694576,3122.5,3121.8,3.2078]
[1763393140830,0.00480422,3122.6,3122.3,0.5193]
[1763393141133,0.00480422,3122.6,3122.4,0.51928]
[1763393141435,0.00480422,3122.6,3122.4,0.51929]
[1763393141832,3.2078,3123.3,3122.7,0.51923]
[1763393142029,3.2078,3123.3,3122.7,3.2078]
[1763393142225,3.2078,3123.3,3122.3,3.2078]
[1763393142429,1.81694576,3123.2,3122.4,3.2078]
[1763393142736,3.2078,3122.9,3122.4,3.2078]
[1763393142936,3.21125078,3122.9,3122.3,0.00480422]
[1763393143231,3.2078,3122.5,3122.3,0.00480422]
[1763393143435,3.2078,3122.5,3121.5,3.2078]
[1763393144031,0.00345078,3122.9,3122.2,0.51931]
[1763393144336,3.2078,3122.7,3122.1,3.2078]
[1763393144531,3.2078,3122.7,3121.7,3.72721]
[1763393145041,3.2078,3122.7,3121.7,3.2078]
[1763393145440,0.00345078,3122.9,3122.1,3.2078]
[1763393145630,0.00345078,3122.9,3122.1,3.72713]
[1763393145938,0.00345078,3122.9,3122.2,0.51932]
[1763393146132,3.2078,3122.8,3121.7,3.2078]
[1763393146336,0.00345078,3122.9,3122.2,3.2078]
[1763393146639,0.00345078,3122.9,3122.2,3.72712]
[1763393146939,0.00345078,3122.9,3122.2,3.2078]
[1763393147134,3.2078,3122.8,3121.8,3.2078]
[1763393147438,0.00345078,3122.9,3122.3,0.51931]
[1763393147638,3.2078,3122.7,3122.2,3.2078]
[1763393147839,0.00345078,3122.9,3122.2,3.2078]
[1763393148039,3.2078,3122.7,3122.2,3.2078]
[1763393149333,0.00345078,3122.9,3122.2,3.2078]
[1763393149534,3.2078,3122.7,3122.2,3.2078]
[1763393150433,1.81694576,3122.6,3121.7,3.2078]
[1763393151239,3.2078,3122.7,3121.8,0.51939]
[1763393151445,3.2078,3122.7,3121.7,3.72721]
[1763393151643,3.2078,3122.7,3121.7,3.72719]
[1763393151834,3.2078,3122.7,3121.7,3.2078]
[1763393152146,0.00345078,3122.9,3120.8,40.80228285]
[1763393152147,3.2078,3121.8,3121.3,3.2078]
[1763393153546,3.2078,3122.2,3121.3,3.2078]
[1763393153848,3.2078,3121.8,3121.3,3.2078]
[1763393154635,3.2078,3121.8,3120.8,0.00228285]
[1763393154636,1.81694576,3121.7,3120.8,3.21008285]
[1763393154848,0.6766,3121.6,3120.8,3.21008285]
[1763393155145,3.2078,3121.4,3120.8,3.21008285]
[1763393155345,3.21260422,3121.4,3120.8,3.21008285]
[1763393155547,0.00480422,3121.4,3120.9,0.51953]
[1763393155747,3.2078,3121.8,3121.7,0.51941]
[1763393155938,3.2078,3122.4,3122.0,0.51936]
[1763393156138,3.2078,3122.4,3122.1,0.51933]
[1763393156340,0.00345078,3122.9,3122.4,0.6735]
[1763393156542,0.00345078,3122.9,3122.3,3.72711]
[1763393156744,0.008255,3122.9,3122.3,3.21260422]
[1763393157344,0.008255,3122.9,3122.7,0.51923]
[1763393157543,0.008255,3122.9,3122.5,0.51926]
[1763393158047,0.008255,3122.9,3122.7,0.51923]
[1763393158250,0.008255,3122.9,3122.4,0.6735]
[1763393158440,0.008255,3122.9,3122.3,3.21260422]
[1763393160545,3.2078,3122.4,3122.3,0.00480422]
[1763393160747,3.8844,3122.4,3122.3,0.00480422]
[1763393161244,3.216055,3122.9,3122.4,0.6735]
[1763393161551,3.2078,3123.8,3122.7,3.2078]
[1763393161750,3.2078,3124.2,3123.6,0.51909]
[1763393161949,3.2078,3124.6,3123.9,3.2078]
[1763393162152,3.2078,3125.0,3124.4,3.2078]
[1763393162556,3.21667281,3125.0,3124.4,0.007953]
[1763393163347,3.2078,3124.5,3124.4,0.007953]
[1763393163650,0.00887281,3125.0,3123.9,3.8813]
[1763393163853,0.00887281,3125.0,3124.4,3.2078]
[1763393164051,0.00887281,3125.0,3124.8,3.2078]
[1763393164256,1.11173958,3126.3,3124.8,3.8813]
[1763393164446,3.2078,3126.5,3125.7,3.2078]
[1763393164646,0.69486555,3126.4,3125.7,3.2078]
[1763393164859,3.2078,3126.1,3125.3,3.2078]
[1763393165358,0.00480422,3126.0,3125.5,3.2078]
[1763393165549,0.00480422,3126.0,3125.4,0.00480422]
[1763393165550,3.21260422,3126.0,3125.4,0.00480422]
[1763393165750,0.00480422,3126.0,3125.7,3.2078]
[1763393166150,0.00410116,3126.1,3125.7,4.40004]
[1763393166353,3.2078,3127.1,3125.7,3.8813]
[1763393166554,3.2078,3127.1,3126.3,3.2078]
[1763393167255,3.2078,3126.4,3125.7,3.2078]
[1763393167456,3.2078,3126.4,3125.4,0.00480422]
[1763393167659,3.2078,3125.9,3125.4,0.00480422]
[1763393167956,0.6766,3126.6,3125.4,0.00480422]
[1763393167957,1.81694576,3126.3,3125.4,0.00480422]
[1763393168151,3.2078,3126.4,3125.4,0.00480422]
[1763393168362,3.2078,3126.0,3125.4,0.00480422]
[1763393168745,3.2078,3125.8,3125.4,0.00480422]
[1763393168944,1.81694576,3125.9,3125.4,0.00480422]
[1763393169161,3.2078,3125.9,3125.4,0.00480422]
[1763393169358,3.2078,3125.5,3125.4,0.00480422]
[1763393169554,3.2078,3125.5,3124.6,3.2078]
[1763393170051,3.2078,3126.0,3125.0,3.2078]
[1763393170448,3.2078,3126.0,3124.6,3.2078]
[1763393170647,0.00480422,3125.6,3125.0,0.00480422]
[1763393170855,0.00480422,3125.6,3125.0,3.21260422]
[1763393171060,0.00480422,3125.6,3125.5,3.2078]
[1763393171356,1.11423457,3127.1,3125.7,0.6735]
[1763393171357,0.00249499,3127.1,3125.7,0.6735]
[1763393171561,0.00249499,3127.1,3126.6,0.6735]
[1763393171956,3.2078,3127.4,3126.9,3.2078]
[1763393172163,10.75269732,3128.4,3126.9,3.72634]
[1763393172164,0.00480422,3127.5,3126.9,3.72634]
[1763393172456,3.2078,3127.1,3126.8,0.00480422]
[1763393172757,0.00480422,3127.5,3126.8,0.00480422]
[1763393172955,3.2078,3127.2,3126.8,0.00713955]
[1763393173153,3.2078,3127.1,3126.8,0.00713955]
[1763393173351,3.2078,3127.1,3125.7,3.8813]
[1763393173652,3.2078,3126.8,3126.1,3.2078]
[1763393173858,3.2078,3126.9,3126.1,3.2078]
[1763393174057,1.81694576,3127.0,3126.1,3.2078]
[1763393174058,3.2078,3127.0,3126.1,3.2078]
[1763393174458,3.2078,3126.9,3126.2,0.00479593]
[1763393175360,3.2078,3126.4,3126.2,0.00479593]
[1763393175549,3.7572,3126.6,3126.2,0.00479593]
[1763393175855,3.7572,3126.6,3125.2,3.2078]
[1763393176052,3.2078,3126.0,3125.2,3.2078]
[1763393176255,3.2078,3126.4,3125.2,3.2078]
[1763393176557,3.2078,3126.5,3125.6,3.2078]
[1763393176756,0.00479593,3126.4,3125.7,0.00479593]
[1763393177062,3.2078,3126.1,3125.7,0.00479593]
[1763393177759,0.4681,3125.7,3124.1,3.2078]
[1763393177955,3.8456,3124.8,3124.1,3.2078]
[1763393178261,3.2078,3124.3,3123.7,3.2078]
[1763393178658,3.21070225,3124.3,3123.7,3.21163229]
[1763393178852,3.21549818,3124.3,3123.7,0.00383229]
[1763393179151,3.2078,3123.8,3123.7,0.00383229]
[1763393179348,3.2078,3123.8,3123.3,3.2078]
[1763393179754,1.81694576,3123.7,3122.8,3.2078]
[1763393180255,3.2078,3123.8,3123.2,3.2078]
[1763393180454,3.21549818,3124.3,3123.2,3.21005728]
[1763393180854,1.81694576,3124.2,3123.2,3.21005728]
[1763393181053,0.00769818,3124.3,3123.7,3.2078]
[1763393181255,0.6378,3123.9,3123.2,0.00225728]
[1763393181556,3.2078,3123.4,3123.2,0.00225728]
[1763393182058,3.2078,3124.1,3123.2,0.00225728]
[1763393182456,3.2078,3124.1,3123.2,0.52140728]
[1763393182760,0.00769818,3124.3,3123.5,3.2078]
[1763393182964,0.00769818,3124.3,3123.5,3.7269]
[1763393183162,0.00769818,3124.3,3123.5,3.2078]
[1763393183458,0.00769818,3124.3,3123.6,0.51908]
[1763393183664,0.00769818,3124.3,3123.5,3.2078]
[1763393183956,3.2078,3124.0,3123.2,0.00225728]
[1763393184164,3.2078,3124.0,3123.2,3.21005728]
[1763393184558,0.596,3123.9,3123.2,3.21005728]
[1763393184763,1.81694576,3123.9,3123.2,3.21005728]
[1763393185060,3.2078,3124.0,3123.2,3.21005728]
[1763393185252,3.2078,3124.0,3123.2,0.00225728]
[1763393185454,2.41294576,3123.9,3123.2,0.00225728]
[1763393185663,3.2078,3124.0,3123.2,0.00225728]
[1763393186066,1.81694576,3123.9,3123.2,0.00225728]
[1763393186365,3.2078,3124.0,3123.3,3.2078]
[1763393186664,0.00769818,3124.3,3123.7,3.2078]
[1763393187068,0.00769818,3124.3,3124.1,3.2078]
[1763393187755,3.2078,3125.2,3124.1,3.2078]
[1763393187950,3.2078,3124.8,3124.1,3.2078]
[1763393188569,1.81694576,3124.7,3123.6,3.2078]
[1763393188859,0.596,3123.9,3123.8,0.00479593]
[1763393189059,0.00479593,3124.5,3123.8,0.00479593]
[1763393189562,3.8038,3123.9,3123.2,0.00225728]